bitfinex-derivatives/quotes_ETHF0:USTF0_20241018
["timestamp","ask_amount","ask_price","bid_price","bid_amount"]
[1729249431246,1.7858,2628.6,2628.5,4.31037729]
[1729249431940,1.7858,2628.6,2628.5,3.92984729]
[1729249432133,1.7858,2628.6,2628.5,2.7455597]
[1729249432932,0.3987,2628.7,2628.5,2.3650297]
[1729249433122,0.3987,2628.7,2628.6,2.7455497]
[1729249433429,0.3987,2628.7,2628.6,2.3650297]
[1729249433828,0.3987,2628.7,2628.6,2.7455497]
[1729249434225,0.7792,2628.7,2628.6,2.3650297]
[1729249434428,0.3987,2628.7,2628.6,1.37]
[1729249434628,0.3987,2628.7,2628.6,2.7455497]
[1729249434927,1.37,2628.9,2628.7,0.3805]
[1729249435132,0.38049,2628.8,2628.7,2.74756194]
[1729249435438,1.7858,2628.9,2628.7,2.74756194]
[1729249435439,2.16629,2628.9,2628.7,2.74756194]
[1729249436129,2.16629,2628.9,2628.8,1.37]
[1729249437026,2.16628,2628.9,2628.8,1.37]
[1729249437234,0.3805,2628.8,2628.6,2.74757194]
[1729249437528,2.16629,2628.9,2628.7,1.7505]
[1729249437937,1.7858,2628.9,2628.7,1.7505]
[1729249438123,0.38049,2628.8,2628.7,1.7505]
[1729249438629,2.16628,2628.9,2628.7,1.7505]
[1729249440949,2.16628,2628.9,2628.8,0.38049]
[1729249440950,0.4158,2628.9,2628.8,0.38049]
[1729249441136,0.4158,2628.9,2628.8,1.75049]
[1729249441634,0.79628,2628.9,2628.8,1.37]
[1729249441940,2.16628,2628.9,2628.7,1.7505]
[1729249442143,0.79628,2628.9,2628.8,1.37]
[1729249442444,0.79628,2628.9,2628.8,1.75049]
[1729249442934,0.79628,2628.9,2628.8,1.37]
[1729249443841,0.79628,2628.9,2628.8,1.75049]
[1729249444043,0.79628,2628.9,2628.8,1.7854]
[1729249444237,0.79628,2628.9,2628.8,2.78246194]
[1729249444756,0.79628,2628.9,2628.8,1.7854]
[1729249444940,2.16628,2628.9,2628.8,0.4154]
[1729249445249,0.38052,2628.6,2628.5,0.99706194]
[1729249445450,1.37,2628.6,2628.3,1.83216194]
[1729249445638,1.75055,2628.4,2628.3,0.8351]
[1729249447145,1.75055,2628.4,2628.2,1.37]
[1729249447146,1.37,2628.4,2628.2,1.37]
[1729249447346,0.38056,2628.3,2628.2,1.37]
[1729249447741,0.38056,2628.3,2628.1,4.0401]
[1729249447742,0.38058,2628.2,2628.1,4.0401]
[1729249447943,0.77548,2628.2,2628.1,5.4101]
[1729249449649,0.3949,2628.2,2628.1,5.79069]
[1729249450446,0.3949,2628.2,2628.1,5.4101]
[1729249450652,0.77548,2628.2,2628.1,5.79069]
[1729249450851,1.7797,2628.4,2628.3,0.38056]
[1729249450852,0.38055,2628.4,2628.3,0.38056]
[1729249451149,0.79345,2628.4,2628.3,1.75056]
[1729249452147,0.79345,2628.4,2628.3,2.74762194]
[1729249452353,0.79345,2628.4,2628.3,4.31290011]
[1729249452557,0.4129,2628.4,2628.3,2.74762194]
[1729249456149,0.4129,2628.4,2628.3,4.31270563]
[1729249457059,0.4129,2628.4,2628.3,2.74762194]
[1729249457254,0.4129,2628.4,2628.3,4.31270613]
[1729249458252,0.4129,2628.4,2628.3,4.31265218]
[1729249459063,0.4129,2628.4,2628.3,1.75056]
[1729249461553,1.7829,2628.4,2628.1,2.6089]
[1729249461751,0.4129,2628.4,2628.3,1.37]
[1729249461951,0.79346,2628.4,2628.3,1.37]
[1729249465560,2.16346,2628.4,2628.2,1.75057]
[1729249467063,2.16346,2628.4,2628.2,2.74763194]
[1729249467565,0.38056,2628.3,2628.2,2.74764194]
[1729249468166,0.38056,2628.3,2628.2,2.36706194]
[1729249468362,0.38056,2628.3,2628.2,2.74764194]
[1729249468767,0.38056,2628.3,2628.2,2.36706194]
[1729249468961,0.38056,2628.3,2628.2,2.74764194]
[1729249469169,2.16346,2628.4,2628.2,2.74764194]
[1729249470056,0.38056,2628.3,2628.2,2.74764194]
[1729249470261,0.38056,2628.3,2628.2,4.31084237]
[1729249471471,0.4129,2628.4,2628.2,3.93026237]
[1729249471778,0.79345,2628.4,2628.3,2.74762194]
[1729249472461,0.4129,2628.4,2628.3,2.74762194]
[1729249474172,0.4129,2628.4,2628.3,1.75056]
[1729249474968,0.4144,2628.5,2628.4,0.38055]
[1729249475175,3.2078,2628.7,2628.5,0.38053]
[1729249475373,0.38046,2629.0,2628.8,0.38048]
[1729249475568,0.38046,2629.0,2628.9,1.7868]
[1729249476081,4.0385,2629.1,2628.9,2.16727]
[1729249476374,4.0385,2629.1,2629.0,1.7595]
[1729249476375,5.78895,2629.1,2629.0,1.7595]
[1729249476678,5.4085,2629.1,2629.0,1.7595]
[1729249477773,2.2007,2629.1,2629.0,1.7595]
[1729249480375,2.58115,2629.1,2629.0,1.7595]
[1729249481481,2.2007,2629.1,2629.0,1.7595]
[1729249482374,4.5778,2629.2,2629.0,1.7595]
[1729249482576,3.2078,2629.2,2629.1,1.75045]
[1729249482783,3.2078,2629.2,2629.1,2.16775]
[1729249483468,40.8,2629.3,2629.2,0.38043]
[1729249483681,0.785,2629.4,2629.2,1.75043]
[1729249483872,0.785,2629.4,2629.3,1.37]
[1729249484074,0.785,2629.4,2629.3,1.75042]
[1729249485079,2.155,2629.4,2629.3,1.37]
[1729249486071,0.4046,2629.4,2629.3,1.75042]
[1729249486276,1.7695,2629.5,2629.3,1.75042]
[1729249486277,0.3995,2629.5,2629.4,0.3804]
[1729249486577,0.3995,2629.5,2629.4,2.1471]
[1729249487277,2.14989,2629.5,2629.4,1.7667]
[1729249488180,2.14989,2629.5,2629.4,0.3967]
[1729249491483,2.14989,2629.5,2629.2,0.4171]
[1729249491484,4.9773,2629.5,2629.2,0.4171]
[1729249491680,1.37,2629.3,2629.1,1.37]
[1729249491869,1.37,2629.1,2629.0,1.37]
[1729249492069,1.75045,2629.1,2629.0,1.37]
[1729249494376,1.75045,2629.1,2628.9,1.20367]
[1729249494377,1.37,2629.1,2628.9,1.37]
[1729249494689,0.38048,2629.0,2628.8,3.58828]
[1729249494878,0.3963,2628.9,2628.8,3.58828]
[1729249495180,0.77678,2628.9,2628.8,3.58828]
[1729249496178,0.77678,2628.9,2628.8,1.75048]
[1729249496577,0.3963,2628.9,2628.8,1.75048]
[1729249496777,0.77678,2628.9,2628.8,5.55448]
[1729249496976,0.77678,2628.9,2628.8,1.75048]
[1729249497891,1.7663,2628.9,2628.7,5.3851]
[1729249498083,1.75049,2628.8,2628.7,2.1773]
[1729249498582,1.37,2628.8,2628.3,3.2078]
[1729249498784,0.38054,2628.5,2628.4,2.56084]
[1729249498981,0.4034,2628.7,2628.4,2.1803]
[1729249499186,0.8241,2628.9,2628.7,0.3805]
[1729249499187,0.3805,2628.8,2628.7,0.3805]
[1729249499389,0.3805,2628.8,2628.7,1.7505]
[1729249500087,0.3805,2628.8,2628.7,1.37]
[1729249502492,1.18018,2628.9,2628.7,1.7505]
[1729249502685,1.18018,2628.9,2628.8,1.7789]
[1729249503196,0.7997,2628.9,2628.8,2.15939]
[1729249506994,3.2078,2629.2,2628.8,1.7789]
[1729249507190,3.2078,2629.2,2629.1,1.37]
[1729249507392,3.2078,2629.2,2629.1,1.75045]
[1729249507587,3.2078,2629.2,2629.1,1.37]
[1729249507588,4.5778,2629.2,2629.1,1.37]
[1729249507885,4.95824,2629.2,2629.0,1.75046]
[1729249508086,1.37,2629.1,2629.0,1.75046]
[1729249508895,1.75045,2629.1,2629.0,1.37]
[1729249509592,1.37,2629.1,2629.0,1.37]
[1729249509898,1.37,2629.1,2629.0,1.75046]
[1729249510692,3.2078,2629.2,2629.1,0.38045]
[1729249510887,3.2078,2629.2,2629.1,1.75045]
[1729249516107,41.18041,2629.4,2629.3,0.38042]
[1729249516400,44.38821,2629.4,2629.3,1.75042]
[1729249516906,44.0078,2629.4,2629.3,2.15882]
[1729249519099,40.8,2629.4,2629.3,2.15882]
[1729249520203,0.3949,2629.5,2629.4,0.3804]
[1729249520503,0.3949,2629.5,2629.4,1.7504]
[1729249520691,41.1949,2629.5,2629.4,1.7504]
[1729249521300,0.3949,2629.5,2629.4,1.7504]
[1729249522305,0.77529,2629.5,2629.4,1.7504]
[1729249524607,0.3949,2629.5,2629.4,1.7504]
[1729249525104,0.4302,2629.6,2629.5,0.38039]
[1729249525409,0.4302,2629.6,2629.5,1.75039]
[1729249528110,3.2078,2630.0,2629.5,2.36706194]
[1729249528313,0.8297,2629.9,2629.6,0.8031]
[1729249528507,0.8297,2629.9,2629.7,0.38035]
[1729249528716,0.8297,2629.9,2629.8,0.38035]
[1729249529410,1.21003,2629.9,2629.8,1.75035]
[1729249530300,0.8297,2629.9,2629.8,1.75035]
[1729249538615,0.8297,2629.9,2629.0,1.27117994]
[1729249538616,0.38037,2629.6,2629.5,1.75039]
[1729249538817,0.38037,2629.6,2629.1,3.2078]
[1729249538818,0.3804,2629.5,2629.4,0.3804]
[1729249539023,0.3804,2629.5,2629.4,1.7504]
[1729249539612,0.4035,2629.5,2629.4,1.7504]
[1729249540111,0.7839,2629.5,2629.4,1.37]
[1729249540720,0.4035,2629.5,2629.4,1.7504]
[1729249540920,0.4035,2629.5,2629.4,3.1204]
[1729249541313,0.4035,2629.5,2629.4,1.7504]
[1729249541522,0.4035,2629.5,2629.4,3.1204]
[1729249542025,0.4035,2629.5,2629.4,1.7504]
[1729249542218,0.78389,2629.5,2629.4,1.7504]
[1729249542413,0.4035,2629.5,2629.4,1.7504]
[1729249542717,0.4035,2629.5,2629.4,3.1204]
[1729249543118,0.4035,2629.5,2629.4,1.7504]
[1729249543829,0.78389,2629.5,2629.4,1.7504]
[1729249544818,0.4035,2629.5,2629.4,3.1204]
[1729249545022,0.3893,2629.6,2629.5,0.38039]
[1729249545218,0.38041,2629.4,2629.2,0.3983]
[1729249545418,0.4163,2629.3,2629.2,1.17443]
[1729249546221,0.4163,2629.3,2629.2,2.54443]
[1729249546924,1.21312,2629.3,2629.2,2.54443]
[1729249547125,1.21312,2629.3,2629.2,2.14613]
[1729249547325,1.21312,2629.3,2629.2,1.75043]
[1729249547631,0.38044,2629.2,2629.1,0.38044]
[1729249549627,0.38044,2629.2,2629.1,1.75044]
[1729249549919,0.8327,2629.3,2629.1,1.37]
[1729249550114,0.38043,2629.2,2629.1,0.38044]
[1729249550314,0.38044,2629.2,2629.1,0.38044]
[1729249551527,0.38044,2629.2,2629.1,1.75044]
[1729249553028,1.21313,2629.3,2629.2,0.38043]
[1729249553230,1.21313,2629.3,2629.2,1.75043]
[1729249553429,1.21313,2629.3,2629.2,1.37]
[1729249557131,0.8327,2629.3,2629.2,1.75043]
[1729249557527,3.2078,2629.5,2629.4,0.3804]
[1729249557835,4.40509,2629.5,2629.4,1.37]
[1729249558333,4.40509,2629.5,2629.4,1.7504]
[1729249558728,4.0247,2629.5,2629.4,1.7504]
[1729249560235,4.40509,2629.5,2629.4,1.37]
[1729249560427,4.0247,2629.5,2629.4,1.7504]
[1729249560631,4.40509,2629.5,2629.4,1.7504]
[1729249561137,4.0247,2629.5,2629.4,1.7504]
[1729249561631,4.0247,2629.5,2629.4,2.1773]
[1729249562740,0.38036,2629.7,2629.4,3.1669]
[1729249562936,0.38036,2629.7,2629.6,1.75037]
[1729249563245,0.38036,2629.7,2629.6,1.37]
[1729249564839,3.2078,2629.8,2629.6,1.75036]
[1729249564840,3.58815,2629.8,2629.6,1.75036]
[1729249565144,0.3933,2629.7,2629.6,0.38036]
[1729249566841,0.3933,2629.7,2629.6,1.75036]
[1729249568934,1.7633,2629.7,2629.5,1.37]
[1729249569138,0.38039,2629.5,2629.4,1.7504]
[1729249569338,1.75039,2629.5,2629.4,1.37]
[1729249569642,0.38039,2629.5,2629.4,1.37]
[1729249570248,0.38039,2629.5,2629.4,1.7504]
[1729249570548,0.78268,2629.6,2629.4,1.7504]
[1729249570734,0.78268,2629.6,2629.5,1.37]
[1729249571037,1.7633,2629.7,2629.6,0.38037]
[1729249571038,0.3933,2629.7,2629.6,0.38037]
[1729249571237,0.3933,2629.7,2629.6,1.75037]
[1729249571645,3.6248,2629.8,2629.6,1.37]
[1729249571838,3.6248,2629.8,2629.7,2.16296]
[1729249572038,3.2078,2629.8,2629.7,2.16296]
[1729249573041,3.2078,2629.8,2629.7,3.15852891]
[1729249573241,3.2078,2629.8,2629.7,2.16296]
[1729249576239,3.2078,2629.8,2629.7,1.7826]
[1729249576441,3.58815,2629.8,2629.7,1.37]
[1729249577452,0.38035,2629.8,2629.7,1.37]
[1729249583853,0.38035,2629.8,2629.7,1.7607]
[1729249585250,0.38041,2629.4,2629.2,1.37599891]
[1729249585477,5.36735,2629.9,2629.1,0.3907]
[1729249585478,0.38043,2629.2,2629.1,0.3907]
[1729249585652,1.75043,2629.2,2629.0,1.37]
[1729249585861,0.38043,2629.2,2629.1,1.37]
[1729249587454,0.38046,2629.0,2628.9,0.8065]
[1729249587655,1.37,2629.0,2628.7,3.2078]
[1729249587956,3.9927288,2629.2,2628.7,3.2078]
[1729249587957,1.75049,2628.8,2628.7,3.2078]
[1729249588452,1.75049,2628.8,2628.6,1.37]
[1729249588758,5.79248,2628.9,2628.7,1.37]
[1729249589847,0.38049,2628.8,2628.7,1.37]
[1729249590048,1.75049,2628.8,2628.7,1.37]
[1729249590959,1.37,2628.8,2628.6,1.37]
[1729249591256,0.38052,2628.6,2628.5,1.37]
[1729249591561,1.75052,2628.6,2628.5,1.37]
[1729249592153,1.75051,2628.7,2628.5,1.37]
[1729249592352,1.75051,2628.7,2628.6,1.37]
[1729249592858,5.55451,2628.7,2628.6,1.37]
[1729249593753,5.55451,2628.7,2628.5,1.37]
[1729249594056,1.75051,2628.7,2628.5,1.37]
[1729249594663,0.38051,2628.7,2628.6,1.37]
[1729249595265,0.8342,2628.9,2628.6,1.37]
[1729249595266,3.2078,2628.9,2628.6,2.74]
[1729249595458,3.2078,2628.9,2628.8,1.75049]
[1729249595958,3.2078,2628.9,2628.8,2.57709]
[1729249597367,0.3952,2629.3,2629.1,0.38045]
[1729249597368,3.2078,2629.2,2629.1,0.38045]
[1729249597668,3.2078,2629.2,2629.1,1.75045]
[1729249597882,3.2078,2629.2,2629.1,0.38045]
[1729249600494,3.2078,2629.2,2629.0,2.97]
[1729249600495,0.38043,2629.2,2629.0,3.35045]
[1729249600697,0.38043,2629.2,2629.1,0.38045]
[1729249601491,0.77563,2629.3,2629.1,0.38045]
[1729249601687,0.38043,2629.2,2629.1,0.38045]
[1729249601884,0.38043,2629.2,2628.8,3.6313]
[1729249602388,0.38043,2629.2,2629.1,0.38045]
[1729249602780,0.77562,2629.3,2628.8,3.6313]
[1729249602984,0.77562,2629.3,2629.1,0.38044]
[1729249603174,0.3952,2629.3,2628.9,2.97]
[1729249603375,0.3952,2629.3,2629.2,0.38043]
[1729249603577,0.77562,2629.3,2629.2,0.38043]
[1729249603778,0.3952,2629.3,2628.9,2.97]
[1729249603974,0.38043,2629.2,2629.1,0.38044]
[1729249604371,0.77563,2629.3,2629.1,0.38044]
[1729249604774,0.3952,2629.3,2629.1,0.38044]
[1729249604976,0.38043,2629.2,2629.1,0.38044]
[1729249605672,0.77563,2629.3,2629.1,0.38044]
[1729249606268,0.77563,2629.3,2628.9,2.97]
[1729249606269,0.38041,2629.4,2629.2,0.38042]
[1729249606464,3.2078,2629.5,2628.9,6.1778]
[1729249606669,3.2078,2629.5,2629.1,2.97]
[1729249606871,3.2078,2629.5,2629.4,0.3804]
[1729249610465,1.20414,2629.9,2629.7,0.38036]
[1729249610775,0.38035,2629.8,2629.6,0.38037]
[1729249612072,1.2503,2629.9,2629.3,3.3995]
[1729249612379,1.2503,2629.9,2629.6,2.97]
[1729249612380,0.8532,2629.9,2629.6,2.97]
[1729249612670,1.23353,2629.9,2629.7,0.38035]
[1729249612872,1.23353,2629.9,2629.6,2.97]
[1729249612873,0.8532,2629.9,2629.6,2.97]
[1729249613175,0.8532,2629.9,2629.8,0.38035]
[1729249614067,0.8532,2629.9,2629.7,0.77755]
[1729249614262,1.23353,2629.9,2629.7,0.77755]
[1729249614863,0.8532,2629.9,2629.7,0.3972]
[1729249615177,0.8532,2629.9,2629.8,0.38035]
[1729249615877,1.23353,2629.9,2629.7,0.77755]
[1729249616066,0.8532,2629.9,2629.8,0.38035]
[1729249616971,1.23353,2629.9,2629.7,0.77755]
[1729249621778,1.37,2629.8,2629.7,2.14755]
[1729249622770,1.7738,2629.8,2629.7,2.14755]
[1729249624371,1.7738,2629.8,2629.4,0.3804]
[1729249624372,0.38038,2629.6,2629.4,0.3804]
[1729249624574,0.3804,2629.4,2629.3,1.793]
[1729249625084,2.1647,2629.4,2629.3,1.37]
[1729249625482,0.7947,2629.4,2629.3,1.37]
[1729249625681,2.1647,2629.4,2629.3,1.37]
[1729249625882,0.38044,2629.2,2629.0,0.80346]
[1729249626079,0.4143,2629.4,2629.1,0.38044]
[1729249626275,0.38043,2629.3,2629.1,0.38044]
[1729249626578,0.4143,2629.4,2629.1,0.38044]
[1729249626777,0.38043,2629.3,2629.1,0.38044]
[1729249627177,0.4143,2629.4,2629.0,0.423]
[1729249627374,0.38042,2629.3,2629.2,0.38043]
[1729249629182,0.7998,2629.5,2629.4,0.3804]
[1729249629380,3.58817,2629.7,2629.3,2.97]
[1729249629576,3.58817,2629.7,2629.2,3.2078]
[1729249629577,3.2078,2629.7,2629.6,0.38037]
[1729249629785,0.80332,2630.0,2629.5,2.97]
[1729249629976,0.80332,2630.0,2629.8,0.38034]
[1729249630176,0.423,2630.0,2629.9,0.38033]
[1729249630371,0.423,2630.0,2629.6,0.3888]
[1729249630372,0.80332,2630.0,2629.8,0.38034]
[1729249630879,0.80332,2630.0,2629.8,0.77684]
[1729249631183,0.80332,2630.0,2629.9,0.38033]
[1729249631380,0.80332,2630.0,2629.8,0.77683]
[1729249631578,0.80332,2630.0,2629.8,0.77684]
[1729249631985,0.38033,2629.9,2629.8,0.77684]
[1729249632284,0.80332,2630.0,2629.8,0.77684]
[1729249632672,0.423,2630.0,2629.9,0.38033]
[1729249633273,0.80332,2630.0,2629.9,0.38033]
[1729249633478,0.80332,2630.0,2629.8,0.77683]
[1729249633679,0.80332,2630.0,2629.9,0.38033]
[1729249633873,0.423,2630.0,2629.9,0.38033]
[1729249635477,0.80332,2630.0,2629.9,0.38033]
[1729249635673,0.423,2630.0,2629.9,0.38033]
[1729249636177,0.80332,2630.0,2629.9,0.38033]
[1729249636374,0.423,2630.0,2629.9,0.38033]
[1729249636887,3.98779,2630.2,2629.8,0.3965]
[1729249637077,4.39149,2630.2,2630.0,0.38031]
[1729249637277,4.39149,2630.2,2629.8,0.3965]
[1729249637479,0.3803,2630.1,2630.0,0.38031]
[1729249637880,4.3915,2630.2,2630.0,0.38031]
[1729249638686,0.3803,2630.1,2630.0,0.38031]
[1729249638890,1.1837,2630.2,2630.0,0.38031]
[1729249639681,0.3803,2630.1,2630.0,0.38031]
[1729249640389,0.3803,2630.1,2629.9,0.38032]
[1729249641078,0.8034,2630.2,2629.9,0.38032]
[1729249641079,0.38032,2630.0,2629.9,0.38032]
[1729249641283,0.38031,2630.1,2629.9,0.38032]
[1729249642391,0.8034,2630.2,2629.9,0.38033]
[1729249642591,0.38031,2630.1,2629.9,0.38033]
[1729249643092,0.4204,2630.0,2629.9,0.38033]
[1729249643990,1.1837,2630.2,2630.0,0.38031]
[1729249644185,1.6041,2630.2,2630.0,0.38031]
[1729249644797,1.60409,2630.2,2629.8,0.3965]
[1729249644990,1.60409,2630.2,2630.0,0.38031]
[1729249645192,1.2238,2630.2,2630.1,0.3803]
[1729249645494,1.2238,2630.2,2629.8,0.3965]
[1729249645495,1.60409,2630.2,2630.0,0.3803]
[1729249645692,1.2238,2630.2,2630.1,0.3803]
[1729249645879,2.5938,2630.2,2630.1,0.3803]
[1729249647993,1.2238,2630.2,2630.1,1.7503]
[1729249648289,1.2238,2630.2,2630.1,1.37]
[1729249648500,1.2238,2630.2,2630.1,1.7503]
[1729249648798,1.60409,2630.2,2630.1,1.37]
[1729249649298,1.2238,2630.2,2630.1,1.7503]
[1729249649498,0.8335,2630.5,2630.1,1.37]
[1729249649694,0.8335,2630.5,2629.8,5.55071891]
[1729249649695,1.252,2630.5,2630.3,1.75027]
[1729249649897,0.38026,2630.4,2630.3,1.75027]
[1729249650391,1.252,2630.5,2630.4,0.38026]
[1729249650392,0.837,2630.5,2630.4,0.38026]
[1729249650695,2.58726,2630.5,2630.3,1.75027]
[1729249650895,1.37,2630.4,2630.2,0.78818]
[1729249651093,0.837,2630.5,2630.2,0.4079]
[1729249651094,2.14937,2630.3,2630.2,0.4079]
[1729249653090,2.14937,2630.3,2630.1,1.75029]
[1729249653388,0.3803,2630.1,2630.0,2.16111]
[1729249653588,0.3803,2630.1,2630.0,1.75032]
[1729249653792,0.8351,2630.1,2629.9,0.4108]
[1729249653989,0.38032,2630.0,2629.9,1.7808]
[1729249654188,0.38033,2629.9,2629.8,4.95814]
[1729249654398,0.78693,2629.9,2629.8,4.95814]
[1729249654594,0.4066,2629.9,2629.8,4.95814]
[1729249654794,0.8351,2630.1,2629.8,8.3802]
[1729249654995,0.95055,2630.7,2629.8,8.3802]
[1729249654996,0.4066,2630.2,2630.0,1.37]
[1729249655195,0.4066,2630.2,2630.1,2.1657]
[1729249655500,0.38028,2630.3,2630.2,0.38029]
[1729249655691,0.38028,2630.3,2630.2,1.75029]
[1729249655892,0.76918,2630.3,2630.2,1.75029]
[1729249656496,0.3889,2630.3,2630.2,1.75029]
[1729249658299,1.7589,2630.3,2630.2,0.38029]
[1729249658896,1.7589,2630.3,2630.1,1.7854]
[1729249658897,2.13917,2630.3,2630.1,1.7854]
[1729249659098,2.13917,2630.3,2630.2,0.38029]
[1729249659297,1.7589,2630.3,2630.2,0.38029]
[1729249659497,0.3889,2630.3,2630.2,1.75029]
[1729249660491,0.76917,2630.3,2630.2,1.75029]
[1729249660698,0.3889,2630.3,2630.2,1.75029]
[1729249671307,0.38026,2630.4,2630.3,0.38027]
[1729249671513,1.19226,2630.5,2630.3,1.75026]
[1729249671714,1.19224,2630.5,2630.4,1.37]
[1729249671914,1.19224,2630.5,2630.4,1.7958]
[1729249672915,0.812,2630.5,2630.4,1.7958]
[1729249673109,1.19224,2630.5,2630.4,1.7958]
[1729249673316,0.812,2630.5,2630.4,1.7958]
[1729249673514,3.605,2630.6,2630.4,1.7958]
[1729249673713,3.605,2630.6,2630.5,1.75024]
[1729249674016,3.98523,2630.6,2630.5,1.75024]
[1729249674205,4.38223,2630.6,2630.5,1.75024]
[1729249674401,4.38223,2630.6,2630.5,1.37]
[1729249674602,0.38024,2630.5,2630.4,1.7958]
[1729249674906,0.4026,2630.5,2630.4,2.17605]
[1729249675312,0.4026,2630.5,2630.4,2.17606]
[1729249675913,0.78284,2630.5,2630.4,2.17606]
[1729249676109,0.4026,2630.5,2630.4,2.17606]
[1729249677509,0.78284,2630.5,2630.4,2.17606]
[1729249677712,3.2078,2630.9,2630.5,0.38024]
[1729249677909,1.6122,2630.8,2630.7,1.37]
[1729249679806,2.9822,2630.8,2630.7,1.37]
[1729249680504,2.9822,2630.8,2630.6,1.75023]
[1729249680505,2.602,2630.8,2630.6,1.75023]
[1729249680718,0.38022,2630.7,2630.6,1.75023]
[1729249681610,0.38022,2630.7,2630.6,1.37]
[1729249681806,0.38022,2630.7,2630.6,1.75023]
[1729249683212,2.602,2630.8,2630.6,1.37]
[1729249683416,0.38022,2630.7,2630.6,1.75023]
[1729249684329,0.38022,2630.7,2630.6,1.37]
[1729249684910,0.38022,2630.7,2630.6,1.75023]
[1729249686121,0.38022,2630.7,2630.6,1.37]
[1729249687117,1.37,2630.7,2630.4,0.4258]
[1729249687307,0.38024,2630.5,2630.4,0.80605]
[1729249687511,2.602,2630.8,2630.4,1.7958]
[1729249687718,2.602,2630.8,2630.6,1.37]
[1729249687719,0.38022,2630.7,2630.6,1.37]
[1729249688516,0.38024,2630.6,2630.5,1.37]
[1729249692221,0.38024,2630.6,2630.5,1.75024]
[1729249692616,5.8098,2630.8,2630.5,1.75024]
[1729249692817,0.38022,2630.7,2630.6,1.37]
[1729249693422,4.4398,2630.8,2630.6,1.37]
[1729249693423,3.2078,2630.8,2630.6,1.37]
[1729249693722,0.95038,2631.2,2630.8,0.3802]
[1729249693723,0.38018,2631.0,2630.8,0.3802]
[1729249693919,0.38018,2631.0,2630.9,1.7975]
[1729249694125,0.80968,2631.0,2630.9,1.7975]
[1729249695322,0.4295,2631.0,2630.9,1.7975]
[1729249696226,0.80967,2631.0,2630.9,1.7975]
[1729249698525,0.4295,2631.0,2630.9,1.7975]
[1729249698728,0.80967,2631.0,2630.9,1.7975]
[1729249698929,0.38017,2631.1,2630.9,2.17768]
[1729249699124,0.38017,2631.1,2631.0,1.37]
[1729249699329,0.76825,2631.2,2631.1,0.38016]
[1729249699516,0.76824,2631.2,2631.1,1.37]
[1729249699717,0.3897,2631.3,2631.1,2.74]
[1729249699916,0.3897,2631.3,2631.2,1.75014]
[1729249700417,0.76983,2631.3,2631.2,1.37]
[1729249700626,0.3897,2631.3,2631.2,2.16374]
[1729249701028,0.3897,2631.3,2631.2,1.7836]
[1729249701223,0.4204,2631.5,2631.3,0.38012]
[1729249701528,0.4204,2631.5,2631.4,1.37]
[1729249702034,0.8005,2631.5,2631.4,1.37]
[1729249702423,0.38011,2631.4,2631.2,0.4136]
[1729249702725,0.38011,2631.4,2631.3,1.37]
[1729249702928,0.80051,2631.5,2631.3,1.75013]
[1729249703116,0.80051,2631.5,2631.4,1.37]
[1729249709334,0.80051,2631.5,2631.1,0.78995]
[1729249709335,0.38014,2631.3,2631.1,0.78995]
[1729249709524,0.38014,2631.3,2631.2,1.37]
[1729249714128,0.38014,2631.3,2631.2,1.75014]
[1729249714329,0.78503,2631.4,2631.3,0.38013]
[1729249714645,0.38013,2631.4,2631.3,3.12013]
[1729249715539,4.0087,2631.6,2631.3,2.74]
[1729249715737,4.0087,2631.6,2631.5,1.7501]
[1729249717142,0.8009,2631.6,2631.5,1.7501]
[1729249717829,0.4208,2631.6,2631.5,1.7501]
[1729249719438,0.4208,2631.6,2631.5,2.1449]
[1729249721741,0.4208,2631.6,2631.5,1.7648]
[1729249721934,0.4208,2631.6,2631.5,1.7501]
[1729249722137,0.80089,2631.6,2631.5,1.37]
[1729249722333,5.5908,2631.6,2631.1,0.3923]
[1729249722535,0.38011,2631.5,2631.3,0.38012]
[1729249722931,0.4208,2631.6,2631.3,0.38012]
[1729249723144,0.80089,2631.6,2631.5,1.37]
[1729249723542,4.60089,2631.6,2631.5,1.37]
[1729249725840,0.80089,2631.6,2631.5,1.7501]
[1729249726040,0.80089,2631.6,2631.5,1.37]
[1729249726238,0.4208,2631.6,2631.5,1.7501]
[1729249727333,0.80089,2631.6,2631.5,1.7501]
[1729249727536,0.4208,2631.6,2631.5,1.7501]
[1729249730151,0.80089,2631.6,2631.5,1.7501]
[1729249730347,0.4208,2631.6,2631.5,1.7501]
[1729249735049,0.80089,2631.6,2631.5,1.7501]
[1729249735752,0.4208,2631.6,2631.5,1.7501]
[1729249741556,0.80089,2631.6,2631.5,1.7501]
[1729249741759,0.4208,2631.6,2631.5,1.7501]
[1729249743362,0.80089,2631.6,2631.5,1.7501]
[1729249743564,0.4208,2631.6,2631.5,1.7501]
[1729249744457,0.80089,2631.6,2631.5,1.37]
[1729249744649,0.80089,2631.6,2631.5,1.7501]
[1729249745555,0.4208,2631.6,2631.5,1.7501]
[1729249745761,0.80089,2631.6,2631.5,1.7501]
[1729249746264,0.4208,2631.6,2631.5,1.7501]
[1729249747656,0.80089,2631.6,2631.5,1.7501]